Cogmind - Beta 12 @@@ ROGUE MODE // 2023.11.26 @ 22:49:15 // Halloween2019/Abominations Player: Infomantis Result: Destroyed by Lesser Abomination with Medium Laser Performance ------------- Evolutions (0) 0 Regions Visited (1) 200 Robots Destroyed (7) 35 Value Destroyed (136) 136 Prototype IDs (0) 0 Alien Tech Used (0) 0 Bonus (0) 0 TOTAL SCORE: 371 Bonus ------- None Cogmind --------- Core Integrity 0/250 Matter 129/300 Energy 100/100 System Corruption 8% Temperature Cool (9) Movement Walking (120) Location -10/Materials Parts ------- > --- POWER (1) -------- (None) > --- PROPULSION (2) --- Aluminum Leg Aluminum Leg > --- UTILITY (2) ------ Small Storage Unit Structural Scanner > --- WEAPON (2) ------- Assault Rifle Light Assault Rifle > --- INVENTORY (8) ---- Light Ion Engine Light Treads Light Treads Heat Sink Improved Terrain Scanner Light Assault Rifle Grenade Launcher Mining Laser Peak State ------------ > --- POWER ------------ Light Ion Engine > --- PROPULSION ------- Aluminum Leg Aluminum Leg > --- UTILITY ---------- Small Storage Unit Structural Scanner > --- WEAPON ----------- Assault Rifle Light Assault Rifle > --- INVENTORY -------- Light Ion Engine Light Treads Light Treads Heat Sink Improved Terrain Scanner Light Assault Rifle Grenade Launcher Mining Laser [Rating: 8] Favorites ----------- Power Light Ion Engine Engine Light Ion Engine Propulsion Aluminum Leg Leg Aluminum Leg Utility Small Storage Unit Device Seismic Detector Storage Small Storage Unit Weapon Light Assault Rifle Ballistic Gun Light Assault Rifle Launcher Grenade Launcher Build | -11 -10 ------- Run | Jun Mat Slots Evolved . | . . Power . | . . Propulsion . | . . Utility . | . . Weapon . | . . Parts Attached 12 | 7 5 Power 1 | 1 . Engine 1 | 1 . Core . | . . Reactor . | . . Propulsion 2 | 2 . Treads . | . . Leg 2 | 2 . Wheel . | . . Hover . | . . Flight . | . . Utility 3 | 2 1 Device 2 | 1 1 Storage 1 | 1 . Processor . | . . Hackware . | . . Protection . | . . Artifact . | . . Weapon 6 | 2 4 Energy Gun . | . . Energy Cannon . | . . Ballistic Gun 4 | 2 2 Ballistic Cannon . | . . Launcher 2 | . 2 Special Weapon . | . . Impact Weapon . | . . Slashing Weapon . | . . Piercing Weapon . | . . Special Melee Weapon . | . . Unidentified Prototypes . | . . Parts Lost 3 | . 3 Power 1 | . 1 Propulsion . | . . Utility 1 | . 1 Weapon 1 | . 1 Highest Loss Streak 2 | . 2 To Critical Strikes . | . . Average Slot Usage (%) 94 | . 94 Engine 11 | . 11 Leg 28 | . 28 Device 12 | . 12 Storage 14 | . 14 Ballistic Gun 26 | . 26 Launcher 1 | . 1 Naked Turns . | . . Heaviest Build 13 | 12 13 Greatest Support 20 | 20 20 Greatest Overweight (x) . | . . Average Overweight (x) . | . . Largest Inventory Capacity 8 | 8 8 Average Capacity 7 | 7 8 Most Carried 8 | 6 8 Average Carried 6 | 3 7 Final Capacity 8 | 8 8 Final Carried 8 | 6 8 Class Distribution -------------------- 100% | Mutant Dominant Class ---------------- Mutant | -10/Materials Resources | -11 -10 ----------- Run | Jun Mat Matter Collected 406 | 326 80 Remotely . | . . Salvage Created 182 | 131 51 Parts 21 | 16 5 Haulers Intercepted . | . . Recyclers Shooed . | . . Parts Field Recycled . | . . Retrieved Matter . | . . Parts Self-Destructed . | . . Prevented . | . . Kills | -11 -10 ------- Run | Jun Mat Combat Hostiles Destroyed 1 | . 1 Guns 1 | . 1 Classes Destroyed 3 | 2 1 Worker 1 | 1 . Tunneler 5 | 5 . Abomination 1 | . 1 Best Kill Streak 5 | 5 1 Combat Bots Only 1 | . 1 Max Kills in Single Turn 1 | 1 1 Gunslinging . | . . Exploded . | . . Melee . | . . Uniques/NPCs Destroyed . | . . Combat | -11 -10 -------- Run | Jun Mat Damage Taken 846 | . 846 Core 253 | . 253 Absorbed by Shields . | . . Core Remaining (%) 100 | 100 . Volleys Fired 47 | 14 33 Largest 2 | 2 2 Hottest 40 | 40 40 Shots Fired 81 | 28 53 Gun 68 | 28 40 Cannon . | . . Launcher 13 | . 13 Special . | . . Kinetic 68 | 28 40 Thermal . | . . Explosive 13 | . 13 Electromagnetic . | . . Robot Hit Streak 11 | 3 11 Robot Miss Streak 2 | 2 1 Penetration Max . | . . Secondary Targets 1 | . 1 Max Gunslinging Chain 1 | . 1 Shots Hit Robots 55 | 15 40 Core Hits 30 | 7 23 Critical Kills . | . . Critical Parts Destroyed . | . . Critical Strikes . | . . Melee Attacks . | . . Impact . | . . Slashing . | . . Piercing . | . . Sneak Attacks . | . . Combat Hostiles . | . . Follow-up Attacks . | . . Damage Inflicted 1095 | 165 930 Guns 493 | 165 328 Cannons . | . . Explosions 598 | . 598 Melee . | . . Ramming 4 | . 4 Kinetic 493 | 165 328 Thermal . | . . Explosive 584 | . 584 Electromagnetic 14 | . 14 Impact . | . . Slashing . | . . Piercing . | . . Highest Corruption 8 | . 8 Average Corruption 6 | . 6 Corruption Purged . | . . Corruption Blocked . | . . Effects 8 | . 8 Message Errors 2 | . 2 Matter Fused 1 | . 1 Heat Flow Errors 1 | . 1 Data Loss (minor) 2 | . 2 Data Loss (major) 2 | . 2 Overload Shots . | . . Overflow Damage . | . . Projectiles . | . . Explosions . | . . Melee . | . . Knockbacks . | . . Impact . | . . Kinetic . | . . Secondary . | . . Self-Inflicted Damage 7 | . 7 Shots 1 | . 1 Rammed . | . . Targets Rammed 1 | . 1 Kicked 1 | . 1 Crushed . | . . Highest Temperature 278 | . 278 Average Temperature 79 | . 79 Received Heat Transfer 399 | . 399 Effects 1 | . 1 Energy Bleed 1 | . 1 Siege Activations . | . . Robots Corrupted . | . . Combat Hostiles . | . . Parts Fried . | . . Impact Corruptions . | . . Robots Melted . | . . Combat Hostiles . | . . Parts Melted . | . . Heat Transferred . | . . Parts Sabotaged . | . . Parts Stolen . | . . Parts Stripped . | . . Power Chain Reactions . | . . Missiles Intercepted . | . . Alert | -11 -10 ------- Run | Jun Mat Peak Influence 250 | 30 250 Initial 19 | . 19 Average 112 | 11 161 Maximum Alert Level 1 | . 1 Low Security (%) 83 | 100 75 Level 1 16 | . 24 Level 2 . | . . Level 3 . | . . Level 4 . | . . Level 5 . | . . High Security . | . . Max Security . | . . Squads Dispatched 3 | . 3 Investigation 2 | . 2 Extermination . | . . Reinforcement 1 | . 1 Assault . | . . Garrison . | . . Intercept . | . . Searches Triggered . | . . Construction Impeded . | . . Haulers Reinforced . | . . Active Scanning Responses . | . . Cargo Convoy Interrupts . | . . Stealth | -11 -10 --------- Run | Jun Mat Distress Signals . | . . Communications Jammed . | . . Distress Signals . | . . Times Spotted 10 | . 10 Peak Tracking Total 7 | . 7 Tactical Retreats 3 | . 3 Traps | -11 -10 ------- Run | Jun Mat Traps Triggered . | . . Indirectly . | . . Trap Hack Attempts . | . . Triggered . | . . Disarmed . | . . Reprogrammed . | . . Reused . | . . Traps Extracted . | . . Installed . | . . Triggered . | . . Machines | -11 -10 ---------- Run | Jun Mat Machines Disabled 4 | . 4 Max in Single Turn 3 | . 3 Machines Repaired . | . . Machines Sabotaged . | . . Overloaded Fab Kills . | . . Hacking | -11 -10 --------- Run | Jun Mat Machines Accessed 3 | . 3 Terminals 3 | . 3 Fabricators . | . . Repair Stations . | . . Recycling Units . | . . Scanalyzers . | . . Garrison Access . | . . Total Hacks 11 | . 11 Successful 4 | . 4 Failed 7 | . 7 Catastrophic . | . . Database Lockouts . | . . Manual 4 | . 4 Terminals 11 | . 11 Fabricators . | . . Repair Stations . | . . Recycling Units . | . . Scanalyzers . | . . Garrison Access . | . . Terminal Hacks 3 | . 3 Transport Status 1 | . 1 Registered Components 1 | . 1 Zone Layout 1 | . 1 Fabricator Hacks . | . . Repair Station Hacks . | . . Recycling Unit Hacks . | . . Scanalyzer . | . . Garrison Access Hacks . | . . Unauthorized Hacks 1 | . 1 Terminals 1 | . 1 Botnet 1 | . 1 Fabricators . | . . Repair Stations . | . . Recycling Units . | . . Scanalyzers . | . . Garrison Access . | . . Data Cores Recovered . | . . Used . | . . Hacking Detections 1 | . 1 Full Trace Events . | . . Feedback Events . | . . Feedback Blocked . | . . Robot Schematics Acquired . | . . Robots Built . | . . Authchips . | . . Time . | . . Total Robot Build Rating . | . . Part Schematics Acquired . | . . Parts Built . | . . Authchips . | . . Time . | . . Total Part Build Rating . | . . Parts Repaired . | . . Time . | . . Parts Recycled . | . . Recycled Matter . | . . Retrieved Matter . | . . Retrieved Components . | . . Parts Scanalyzed . | . . Part Schematics Acquired . | . . Parts Damaged . | . . Bothacking | -11 -10 ------------ Run | Jun Mat Used RIF Installer . | . . Robots Hacked . | . . Non-combat . | . . Combat . | . . Robot Hacks Applied . | . . Relay Couplers Released . | . . Fabnet Peak Effective % . | . . Robots Rewired . | . . Allies Hacked . | . . Hacks Repelled . | . . Allies | -11 -10 -------- Run | Jun Mat Total Allies . | . . Largest Group . | . . Highest-Rated Group . | . . Highest-Rated Ally . | . . Total Orders . | . . Ally Attacks . | . . Total Damage . | . . Kills . | . . Allies Corrupted . | . . Allies Melted . | . . Intel | -11 -10 ------- Run | Jun Mat Robot Analysis Total . | . . Derelict Logs Recovered . | . . Drone Launches . | . . Drone Recoveries . | . . Exploration | -11 -10 ------------- Run | Jun Mat Turns Passed 435 | 142 293 Spaces Moved 233 | 74 159 Core 2 | 2 . Treads . | . . Legs 231 | 72 159 Wheels . | . . Hover . | . . Flight . | . . Fastest Speed 50 | 50 120 Average Speed 119 | 118 120 Slowest Speed 120 | 120 120 Overloaded Moves . | . . Propulsion Burnouts . | . . Robots Hopped . | . . Cave-ins Triggered . | . . Exploration Rate (%) 16 | 4 29 Regions Visited 1 Branch Regions . Pre-discovered Areas . | . . Known Exits Taken . | . . Unknown Exits Taken 1 | 1 . Scrap Searched . | . . Spaces Dug . | . . Terrain Destroyed 51 | . 51 Melee . | . . Projectile . | . . AOE 51 | . 51 Terrain Rammed . | . . Walls Destroyed . | . . Machines Disabled . | . . Actions | -11 -10 --------- Run | Jun Mat Total 310 | 100 210 Wait 9 | . 9 Move 232 | 73 159 Hop . | . . Pick Up 9 | 6 3 Fast Attach 8 | 7 1 Attach 1 | . 1 Detach . | . . Swap 3 | . 3 Drop . | . . Fire 47 | 14 33 Melee . | . . Ram . | . . Kick 1 | . 1 Crush . | . . Escape Stasis . | . . Rewire . | . . Trap . | . . Miscellaneous . | . . Route ------- -11/Junkyard -10/Materials History --------- Turn | Location | Event 5 | -11/Junkyard | Discovered new exit (range 15) 143 | -11/Junkyard | Entered Materials 316 | -10/Materials | Build established: Mutant 393 | -10/Materials | Core integrity fell below 50% 402 | -10/Materials | Core integrity fell below 20% 436 | -10/Materials | Destroyed by Lesser Abomination with Medium Laser Last Messages --------------- 00358_ Lesser Abomination forced to warp away. 00358_ Lesser Abomination absorbs ECM Suite. 00365_ Neutrino Reactor explodes. 00365_ Recycling Unit disabled. 00365_ Terrain Scanner tumbles out of recycling unit. 00371_ Lesser Abomination absorbs Terrain Scanner. 00375_ Lgt. Ion Engine destroyed. 00376_ Grenade Launcher destroyed. 00379_ Parts repaired by Paradox Anomaly. 00386_ System corrupted: Substantial component data lost. 00389_ Lesser Abomination absorbs Corrupted Terrain Scan Processor. 00396_ 9 Matter blinks away. 00404_ Acquired 51 matter. 00405_ Critical hit (Burn: +37). 00407_ Acquired Grenade Launcher. 00410_ System corrupted: Component data lost. 00413_ Lesser Abomination IFF system glitched. 00415_ Lesser Abomination spits out Corrupted Med. Storage Unit. 00415_ Lesser Abomination absorbs Corrupted Med. Storage Unit, Huge Storage Unit. 00421_ Acquired 20 matter. Map ----- +----------------------------------------------------+ | ?????????????????????????????????????????????????? | | ?????????????????????????????????????????????????? | | ?????????????????????????????????????????????????? | | ?????????????????????????????????????????????????? | | ?????????????????????????????????????????????????? | | ?????????????????????????????????????????????????? | | ?????????????????????????????????????????????????? | | ?????????????????????????????????????????????????? | | ?????????????????????????????????????????????????? | | ?????????????????????????????????????????????????? | | ?????????????????????????????????????????????????? | | ?????????????????????????????????????????????????? | | ???????## ?????????????????????????????????????? | | ???????## ?????????????????????????????????????? | | ???????## ##???????????????????????????????????? | | ???????## ##???????????????????????????????????? | | ???????## ##???????????????????????????????????? | | ?######## ##???????????????????????????????????? | | ?# # ##???????????????????????????????????? | | ?# """ # ##???????????????????????????????????? | | ?# """ + ##?????????######### ????????????????? | | ?# """ # ##?????????######### ????????????????? | | ?# # #########??## # ????????????????? | | ?# # ############# A # ????????????????? | | ?######## # ###### """ # ????????????????? | | ???????## # A/A /@""" + # ????????????? | | ???????## # ###### """ # # ????????????? | | ???????## + ###### # ? # ????????????? | | ????##### # ##??######### ? # ????????????? | | ???###### # ##??## # ????????????????? | | ???###T## ############?????????????????????????? | | ???## ###### ???????????????????????? | | ???## % ]! + ???????????????????????? | | ???## = !]! ###### ???????????????????????? | | ???#######/####### ###### # ???????????????? | | ???#### = ## ############# ??????????????? | | ?????## % ## T ?????????????? | | ?????## ## % ?????????????? | | ####### % % ## ????????????? | | # / = ???????????? | | # ## %##???????????? | | " % "" |##???????????? | | " "# % ###??????????? | | """""""#####% ### ?????????? | | " # ?????????? | | " % + ?????????? | | ???? # # ?????????? | | ????? ## #######""#####/### ####%? # ?????????? | | ????? ## ######!%= # # #### ?????????????? | | ??????????????## # %""" # ## # ?????????????? | +----------------------------------------------------+ Best States ------------- Heat Dissipation 25 Energy Generation 10 Energy Capacity 125 Matter Stores 300 Matter Capacity 300 Sight Range 16 Terrain Scan Density 10 Evasion (%) 55 Item Schematics ----------------- None Robot Schematics ------------------ None Fabricated ------------ Nothing Alien Tech Used ----------------- None Achievements -------------- None Challenges ------------ None Game ------ Seed CouplerGreatClaws Manual? 0 Play Time 00:11:27 Cumulative 360.1 hours Start 2023.11.26 @ 22:42:20 End 2023.11.26 @ 22:49:15 Sessions 1 Manual Loads 0 Difficulty Rogue Special Mode Halloween2019/Abominations Game No. 230 Rogue 207 Adventurer 6 Explorer 17 Win Type - Total 26 Types 18/0/4/1/0/1/1/1/0 Lore% 95 Gallery% 96 Achievement% 79 Wizard Run 0 Options --------- ASCII 0 Keyboard 0 Movement Numpad Keybinds 0 Fullscreen 1 Font 12/Fuzzy Map View 83x54 Tactical HUD 1 Map Filters NONE Filters NONE Steam 1 RUN: 0dd353af-7e6c-442b-97c6-a9fa4436d3f2